fUST/lending_fUST_20241220
["ID","MTS","AMOUNT","RATE_DAILY","PERIOD"]
[346058758,1734680356421,-297.85,0.00021817,2]
[346058759,1734680356449,-214.86122271,0.00021817,2]
[346058760,1734680356470,-1849.49574604,0.00021817,4]
[346058761,1734680356498,-274.22939447,0.00021817,4]
[346058762,1734680356534,-1000.0,0.00021817,4]
[346058763,1734680356545,-407.5091734,0.00021817,4]
[346058764,1734680356558,-1000.0,0.00021817,4]
[346058765,1734680356572,-1000.0,0.00021817,4]
[346058766,1734680356583,-1000.0,0.00021817,4]
[346058767,1734680356598,-153.0,0.00021817,4]
[346058768,1734680356611,-153.0,0.00021817,4]
[346058769,1734680356622,-1000.0,0.00021817,4]
[346058770,1734680356634,-1000.0,0.00021817,4]
[346058771,1734680356654,-1000.0,0.00021817,4]
[346058772,1734680356665,-666.0,0.00021817,4]
[346058773,1734680356677,-2153.73989242,0.00021817,4]
[346058774,1734680356688,-1000.0,0.00021817,4]
[346058775,1734680356705,-1000.0,0.00021817,4]
[346058776,1734680356717,-1000.0,0.00021817,4]
[346058777,1734680356729,-902.6138828,0.00021817,4]
[346058778,1734680356740,-1000.0,0.00021817,4]
[346058779,1734680356751,-608.41713881,0.00021817,4]
[346058780,1734680356763,-300.0,0.00021817,4]
[346058781,1734680356778,-1616.43961184,0.00021817,4]
[346058782,1734680356790,-253.46922258,0.00021817,4]
[346058783,1734680356801,-297.85,0.00021817,4]
[346058784,1734680356817,-214.86122271,0.00021817,4]
[346058785,1734680356828,-432120.24142986,0.00021817,4]
[346058786,1734680378835,-5000.0,0.00018904,7]
[346058787,1734680410351,-203.7545867,0.00021598,2]
[346058789,1734680495139,278.579809,0.00013973,2]
[346058790,1734680664120,303.78524138,0.000172,2]
[346058791,1734680679408,2876.01,0.000172,2]
[346058792,1734680697123,10000.0,0.000172,2]
[346058793,1734680704532,6541.62494962,0.000172,2]
[346058794,1734680704566,3458.37505038,0.000172,2]
[346058795,1734680712954,8312.93,0.000172,2]
[346058796,1734680730635,6545.96,0.000172,2]
[346058838,1734681032092,-518.0,0.00020041,2]
[346058839,1734681032102,-278.579809,0.00020447,2]
[346058840,1734681032112,-1230.29573867,0.00020609,11]
[346058870,1734681037954,-1968.95740494,0.00020609,11]
[346058884,1734681038194,-3419.72747579,0.00020609,11]
[346058885,1734681038203,-358.953,0.0002073,2]
[346058886,1734681038212,-300.0,0.00020774,2]
[346058887,1734681038221,-300.0,0.00020774,2]
[346058888,1734681038233,-7204.7135441,0.00020775,2]
[346058889,1734681038242,-5407.16711722,0.00021,7]
[346058890,1734681038252,-203.7545868,0.00021598,2]
[346058891,1734681038262,-533.0,0.00021602,2]
[346058892,1734681038271,-2154.0,0.00021602,2]
[346058893,1734681038282,-2368.0,0.00021602,2]
[346058894,1734681038292,-3308.34628732,0.000217,2]
[346058895,1734681038303,-808.21980592,0.00021817,2]
[346058896,1734681038312,-253.46922257,0.00021817,2]
[346058897,1734681038322,-666.0,0.00021817,2]
[346058898,1734681038331,-229.91215505,0.00021817,7]
[346058899,1734681038575,-10224.30418925,0.00021817,7]
[346058900,1734681038585,-1338.94581075,0.00021817,4]
[346058901,1734681038597,-9727.4,0.00021817,4]
[346058905,1734681040011,-9927.3897161,0.00021817,4]
[346058906,1734681040124,-9909.60310969,0.00021817,4]
[346058907,1734681040137,-29916.511226,0.00021817,4]
[346058908,1734681040151,-31767.17838776,0.00021817,4]
[346058909,1734681040162,-1192.2580604,0.00021817,4]
[346058926,1734681043027,-150.206,0.00021602,2]
[346058928,1734681043037,-40978.65164997,0.00021817,4]
[346058949,1734681043307,-6201.44689289,0.00021817,4]
[346058984,1734681045876,-1279.20002,0.00021817,4]
[346058990,1734681045929,-2004.91091655,0.00021817,4]
[346058992,1734681045941,-18709.05411395,0.00021817,4]
[346058995,1734681045952,-3636.09917491,0.00021817,4]
[346059168,1734681073743,335.0,0.000172,2]
[346059174,1734681459764,273.860261,0.00013973,2]
[346059177,1734681691810,160.0,0.00024926,120]
[346059180,1734681881488,1073.87468862,0.00017,2]
[346059181,1734681881520,12826.12531138,0.00017,2]
[346059369,1734682237961,-170.77136334,0.00019841,2]
[346059370,1734682237971,-1689.05094482,0.00020243,2]
[346059371,1734682237981,-273.860261,0.00020447,2]
[346059372,1734682237991,-161.323929,0.00020531,2]
[346059373,1734682238000,-1559.99350184,0.00020698,2]
[346059374,1734682238021,-109.8715754,0.00020698,2]
[346059375,1734682238030,-845.2185512,0.00020729,2]
[346059376,1734682238039,-357.254,0.0002073,2]
[346059377,1734682238048,-198.5483049,0.000215,2]
[346059378,1734682238059,-209.05169608,0.000215,2]
[346059379,1734682238069,-150.114,0.00021602,2]
[346059380,1734682238078,-250.0,0.00021602,2]
[346059381,1734682238087,-160.0,0.00021663,3]
[346059382,1734682238097,-300.0,0.00021716,2]
[346059383,1734682238109,-300.0,0.00021716,2]
[346059384,1734682238119,-428.38598716,0.00021717,2]
[346059385,1734682238129,-3399.38664549,0.00021817,2]
[346059386,1734682238139,-424.59932633,0.00021817,2]
[346059387,1734682238150,-666.0,0.00021817,2]
[346059388,1734682238159,-25107.02370414,0.00021817,4]
[346059389,1734682238170,-168170.706575,0.00021817,4]
[346059390,1734682238183,-436.68998956,0.00021817,4]
[346059391,1734682238197,-964.24813744,0.00021817,4]
[346059394,1734682238219,-667.16029487,0.00021817,4]
[346059396,1734682238231,-13006.13128309,0.00021817,4]
[346059397,1734682238243,-8801.93012585,0.00021817,4]
[346059398,1734682238254,-825.19982806,0.00021817,4]
[346059399,1734682238319,-9929.23597,0.00021817,4]
[346059400,1734682238330,-1100.13685492,0.00021817,4]
[346059401,1734682238342,-710.6645901,0.00021817,4]
[346059402,1734682238353,-12325.34474123,0.00021817,4]
[346059403,1734682238365,-500.0,0.00021817,4]
[346059414,1734682242938,-35062.49999725,0.00021817,4]
[346059440,1734682245976,-547.96628415,0.00021817,4]
[346059441,1734682246030,-18913.2829022,0.00021817,4]
[346059442,1734682246280,-271.60291709,0.00021817,4]
[346059443,1734682246292,-4869.80571781,0.00021817,4]
[346059444,1734682246303,-19000.0,0.00021817,4]
[346059445,1734682246315,-20856.70397533,0.00021817,4]
[346059448,1734682431515,257.714578,0.00013973,2]
[346059449,1734682436559,1392.27293516,0.00022,120]
[346059457,1734683279576,255.773207,0.00013973,2]
[346059468,1734683310833,390.93957115,0.00015,7]
[346059519,1734683438358,-169.898339,0.00019538,2]
[346059520,1734683438368,-300.0,0.00020136,2]
[346059521,1734683438377,-300.0,0.00020136,2]
[346059522,1734683438386,-16092.85298815,0.00020137,2]
[346059523,1734683438397,-5871.2843029,0.00020137,2]
[346059524,1734683438408,-2935.86270895,0.00020137,2]
[346059525,1734683438417,-20593.23728569,0.00020137,2]
[346059526,1734683438428,-7318.06582347,0.00020447,2]
[346059527,1734683438439,-2332.82504615,0.00020447,2]
[346059528,1734683438451,-201.31413688,0.00020447,2]
[346059529,1734683438461,-255.773207,0.00020447,2]
[346059530,1734683438472,-355.276,0.0002073,2]
[346059531,1734683438482,-1048.53665632,0.000209,2]
[346059847,1734684160806,240.459833,0.00013973,2]
[346059916,1734684636480,-671.1325,0.00019825,2]
[346059919,1734684636493,-132.64263134,0.00019825,2]
[346059921,1734684636502,-300.0,0.00019924,2]
[346059922,1734684636516,-300.0,0.00019924,2]
[346059925,1734684636526,-10917.70354646,0.00019925,2]
[346059928,1734684636547,-2745.39645354,0.00019925,2]
[346059930,1734684636556,-240.5923565,0.00020025,2]
[346059932,1734684636566,-11.9509276,0.00020447,2]
[346060036,1734684639251,-228.5089054,0.00020447,2]
[346060037,1734684639265,-340.539,0.0002073,2]
[346060038,1734684639275,-651.12503552,0.00020899,2]
[346060039,1734684639285,-4038.01414776,0.00020998,2]
[346060040,1734684639295,-525.62403184,0.00020999,2]
[346060041,1734684639305,-500.0,0.00020999,2]
[346060042,1734684639315,-500.0,0.00020999,2]
[346060043,1734684639324,-500.0,0.00020999,2]
[346060045,1734684639334,-500.0,0.00020999,2]
[346060047,1734684639344,-500.0,0.00020999,2]
[346060049,1734684639354,-500.0,0.00020999,2]
[346060050,1734684639363,-500.0,0.00020999,2]
[346060051,1734684639373,-500.0,0.00020999,2]
[346060052,1734684639383,-500.0,0.00020999,2]
[346060053,1734684639392,-226.32529303,0.00020999,2]
[346060054,1734684639402,-500.0,0.00020999,2]
[346060055,1734684639412,-500.0,0.00020999,2]
[346060056,1734684639422,-500.0,0.00020999,2]
[346060057,1734684639432,-500.0,0.00020999,2]
[346060058,1734684639442,-500.0,0.00020999,2]
[346060059,1734684639453,-500.0,0.00020999,2]
[346060060,1734684639462,-500.0,0.00020999,2]
[346060061,1734684639472,-226.16952946,0.00020999,2]
[346060062,1734684639482,-500.0,0.00020999,2]
[346060063,1734684639491,-500.0,0.00020999,2]
[346060064,1734684639501,-625.17750348,0.00020999,2]
[346060065,1734684639513,-500.0,0.00020999,2]
[346060066,1734684639523,-500.0,0.00020999,2]
[346060067,1734684639533,-500.0,0.00020999,2]
[346060068,1734684639543,-556.81141334,0.00020999,2]
[346060069,1734684639552,-500.0,0.00020999,2]
[346060070,1734684639561,-500.0,0.00020999,2]
[346060071,1734684639571,-500.0,0.00020999,2]
[346060072,1734684639580,-500.0,0.00020999,2]
[346060073,1734684639590,-500.0,0.00020999,2]
[346060074,1734684639599,-500.0,0.00020999,2]
[346060075,1734684639608,-246.47563052,0.00020999,2]
[346060076,1734684639618,-500.0,0.00020999,2]
[346060077,1734684639628,-500.0,0.00020999,2]
[346060078,1734684639638,-238.53850565,0.00020999,2]
[346060079,1734684639649,-500.0,0.00020999,2]
[346060080,1734684639659,-500.0,0.00020999,2]
[346060081,1734684639669,-500.0,0.00020999,2]
[346060082,1734684639678,-500.0,0.00020999,2]
[346060083,1734684639688,-500.0,0.00020999,2]
[346060084,1734684639698,-500.0,0.00020999,2]
[346060086,1734684639707,-500.0,0.00020999,2]
[346060087,1734684639717,-499.99999999,0.00020999,2]
[346060088,1734684639726,-13681.46313001,0.00021,2]
[346060089,1734684639736,-591.21531352,0.00021,2]
[346060090,1734684639750,-3163.77883562,0.00021,2]
[346060148,1734684640595,-23912.50000001,0.00021,2]
[346060150,1734684640606,-5414.21918604,0.00021,2]
[346060152,1734684640617,-9579.9,0.00021,2]
[346060154,1734684640629,-366.0670543,0.00021,2]
[346060157,1734684640651,-2006.83990656,0.00021,2]
[346060165,1734684640711,-1546.78600054,0.00021,2]
[346060437,1734684643368,-4295.27910266,0.00021,2]
[346060450,1734684643479,-39230.60871809,0.00021,2]
[346060452,1734684643491,-482.14109241,0.00021,2]
[346060454,1734684643503,-282.45248,0.00021,2]
[346060457,1734684643520,-367.03736196,0.00021,2]
[346060779,1734684646583,-1420.03417878,0.0002079,2]
[346060781,1734684646593,-22659.57666732,0.00021,2]
[346060784,1734684646605,-5188.05392427,0.00021,2]
[346060786,1734684646617,-6726.00528406,0.00021,2]
[346060788,1734684646626,-500.0,0.00021,2]
[346060790,1734684646636,-500.0,0.00021,2]
[346060792,1734684646645,-397.79504694,0.00021,2]
[346060794,1734684646654,-500.0,0.00021,2]
[346060796,1734684646664,-651.12503546,0.00021231,2]
[346060798,1734684646673,-179.455029,0.00021398,2]
[346060800,1734684646683,-205.32582793,0.00021499,2]
[346060802,1734684646693,-242.03452498,0.00021499,2]
[346060805,1734684646703,-8410.20986357,0.000215,2]
[346060807,1734684646712,-5745.92472033,0.000215,2]
[346061916,1734684761364,164.606948,0.0002411,120]
[346061918,1734685156258,244.657734,0.00013973,2]
[346062357,1734685836375,-2469.4812278,0.0002006,2]
[346062360,1734685836384,-300.0,0.00020144,2]
[346062362,1734685836394,-300.0,0.00020144,2]
[346062364,1734685836403,-9868.2909085,0.00020146,2]
[346062366,1734685836412,-172.2746542,0.00020225,2]
[346062368,1734685836422,-296.969319,0.00020306,2]
[346062370,1734685836431,-244.657734,0.00020447,2]
[346062372,1734685836441,-308.0875379,0.00020978,2]
[346062374,1734685836451,-362.5952416,0.00020978,2]
[346062376,1734685836462,-426.6778935,0.00020978,2]
[346062378,1734685836471,-402.8162622,0.00020978,2]
[346062380,1734685836481,-3602.07623204,0.00021,2]
[346062392,1734685836586,-1163.16156796,0.00021,2]
[346062394,1734685836595,-1214.33843204,0.00021416,2]
[346062398,1734685836619,-577.37,0.00021416,2]
[346062549,1734685838823,-3037.52627489,0.00021416,2]
[346062550,1734685838919,-1335.04581387,0.00021416,2]
[346062551,1734685838929,-152.0,0.00021446,2]
[346062552,1734685838938,-6164.28052076,0.00021491,2]
[346062553,1734685838948,-175.704,0.00021498,2]
[346062554,1734685838960,-9944.86201989,0.000215,2]
[346062555,1734685838970,-485.06548193,0.000215,2]
[346062556,1734685838979,-5682.14223644,0.000215,2]
[346062558,1734685838991,-900.0,0.000215,2]
[346062787,1734685841127,-3298.00000001,0.000215,2]
[346062798,1734685841251,-3.87648,0.000215,2]
[346062800,1734685841264,-9862.38026721,0.000215,2]
[346062802,1734685841276,-443.85710537,0.000215,2]
[346062804,1734685841288,-3276.69999998,0.000215,2]
[346063155,1734685844448,-562.5,0.000215,2]
[346063157,1734685844469,-3000.0,0.000215,2]
[346063192,1734685844716,-1202.73336733,0.000215,2]
[346063443,1734685847747,-327.0,0.000215,2]
[346063446,1734685847759,-335.84564104,0.000215,2]
[346063451,1734685847805,-25139.998225,0.000215,2]
[346063453,1734685847817,-6766.799781,0.000215,2]
[346063456,1734685847830,-15262.08,0.000215,2]
[346066258,1734686118502,239.31777,0.00013973,2]
[346066264,1734686733585,1287.45,0.0001725,2]
[346066282,1734686895882,188.0,0.0002,120]
[346066308,1734686966274,9000.0,0.00025,120]
[346066311,1734687006005,235.958495,0.00013973,2]
[346066329,1734687032832,-1598.89931895,0.00018502,2]
[346066331,1734687032842,-250.0,0.00018689,2]
[346066333,1734687032851,-250.0,0.00019868,2]
[346066334,1734687032861,-582.04698443,0.000199,2]
[346066335,1734687032870,-300.0,0.00019922,2]
[346066336,1734687032879,-1995.56338112,0.00019923,2]
[346066337,1734687032891,-18217.79374885,0.00019923,2]
[346066338,1734687032933,-4686.64287003,0.00019923,2]
[346066339,1734687032942,-4009.0619756,0.00019973,2]
[346066340,1734687032951,-5071.54344334,0.0002,2]
[346066341,1734687032960,-262.636933,0.00020029,2]
[346066342,1734687032973,-172.881297,0.00020037,2]
[346066343,1734687032983,-7599.9094263,0.00020204,2]
[346066344,1734687032993,-529.3200886,0.00020225,2]
[346066345,1734687033002,-152.0,0.00020244,2]
[346066346,1734687033012,-582.04698442,0.00020353,2]
[346066347,1734687033022,-402.879,0.0002042,2]
[346066348,1734687033032,-235.958495,0.00020447,2]
[346066349,1734687033042,-582.04698442,0.00020807,2]
[346066350,1734687033052,-153.0,0.00021096,2]
[346066351,1734687033061,-582.04698442,0.0002126,2]
[346066352,1734687033071,-286.2839226,0.00021284,2]
[346066353,1734687033081,-153.0,0.000213,2]
[346066354,1734687033091,-599.32224466,0.00021301,2]
[346066355,1734687033101,-177.250853,0.00021333,2]
[346066356,1734687033111,-166.01,0.00021365,2]
[346066357,1734687033121,-3698.56831248,0.000214,2]
[346066358,1734687033131,-3698.56831245,0.00021479,2]
[346066359,1734687033140,-1566.42,0.00021498,2]
[346066360,1734687033150,-236.09302239,0.00021499,2]
[346066361,1734687033159,-212.7983977,0.00021499,2]
[346066362,1734687033168,-500.0,0.00021499,2]
[346066363,1734687033177,-500.0,0.00021499,2]
[346066364,1734687033186,-500.0,0.00021499,2]
[346066365,1734687033196,-500.0,0.00021499,2]
[346066366,1734687033206,-247.35216994,0.00021499,2]
[346066367,1734687033218,-500.0,0.00021499,2]
[346066368,1734687033229,-572.57250082,0.00021499,2]
[346066369,1734687033239,-500.0,0.00021499,2]
[346066370,1734687033248,-500.0,0.00021499,2]
[346066371,1734687033257,-500.0,0.00021499,2]
[346066372,1734687033267,-191.75594577,0.00021499,2]
[346066373,1734687033276,-500.0,0.00021499,2]
[346066374,1734687033286,-500.0,0.00021499,2]
[346066375,1734687033295,-500.0,0.00021499,2]
[346066376,1734687033304,-500.0,0.00021499,2]
[346066377,1734687033313,-500.0,0.00021499,2]
[346066378,1734687033323,-500.0,0.00021499,2]
[346066379,1734687033333,-500.0,0.00021499,2]
[346066380,1734687033342,-356.53690848,0.00021499,2]
[346066381,1734687033351,-500.0,0.00021499,2]
[346066382,1734687033360,-500.0,0.00021499,2]
[346066383,1734687033369,-500.0,0.00021499,2]
[346066384,1734687033379,-500.0,0.00021499,2]
[346066385,1734687033388,-236.11512208,0.00021499,2]
[346066386,1734687033397,-500.0,0.00021499,2]
[346066387,1734687033406,-500.0,0.00021499,2]
[346066388,1734687033415,-500.0,0.00021499,2]
[346066389,1734687033425,-500.0,0.00021499,2]
[346066390,1734687033435,-500.0,0.00021499,2]
[346066391,1734687033444,-500.0,0.00021499,2]
[346066392,1734687033454,-500.0,0.00021499,2]
[346066393,1734687033465,-500.0,0.00021499,2]
[346066394,1734687033480,-500.0,0.00021499,2]
[346066395,1734687033490,-500.0,0.00021499,2]
[346066396,1734687033499,-500.0,0.00021499,2]
[346066397,1734687033509,-500.0,0.00021499,2]
[346066398,1734687033518,-500.0,0.00021499,2]
[346066399,1734687033528,-500.0,0.00021499,2]
[346066400,1734687033537,-500.0,0.00021499,2]
[346066401,1734687033547,-615.11852507,0.00021499,2]
[346066402,1734687033557,-500.0,0.00021499,2]
[346066403,1734687033569,-500.0,0.00021499,2]
[346066404,1734687033578,-500.0,0.00021499,2]
[346066405,1734687033588,-500.0,0.00021499,2]
[346066406,1734687033598,-500.0,0.00021499,2]
[346066407,1734687033607,-500.0,0.00021499,2]
[346066408,1734687033616,-500.0,0.00021499,2]
[346066409,1734687033625,-500.0,0.00021499,2]
[346066410,1734687033635,-500.0,0.00021499,2]
[346066411,1734687033646,-500.0,0.00021499,2]
[346066412,1734687033656,-500.0,0.00021499,2]
[346066413,1734687033665,-500.0,0.00021499,2]
[346066414,1734687033675,-500.0,0.00021499,2]
[346066415,1734687033684,-500.0,0.00021499,2]
[346066416,1734687033694,-500.0,0.00021499,2]
[346066417,1734687033704,-500.0,0.00021499,2]
[346066418,1734687033714,-500.0,0.00021499,2]
[346066419,1734687033729,-500.0,0.00021499,2]
[346066420,1734687033739,-500.0,0.00021499,2]
[346066421,1734687033749,-500.0,0.00021499,2]
[346066422,1734687033759,-500.0,0.00021499,2]
[346066423,1734687033768,-172.91899733,0.00021499,2]
[346066438,1734687039039,-70.59708235,0.00021499,2]
[346066439,1734687039049,-473.59374139,0.00021499,2]
[346066440,1734687039120,-26.40625861,0.00021499,2]
[346066441,1734687039130,-473.36940955,0.00021499,2]
[346066453,1734687040817,-26.63059045,0.00021499,2]
[346066454,1734687040828,-500.0,0.00021499,2]
[346066455,1734687040838,-500.0,0.00021499,2]
[346066456,1734687040848,-151.0,0.00021499,2]
[346066457,1734687040858,-151.0,0.00021499,2]
[346066458,1734687040868,-536.633842,0.00021499,2]
[346066459,1734687040878,-151.418192,0.00021499,2]
[346066460,1734687040888,-536.633842,0.00021499,2]
[346066461,1734687040897,-1002.94040871,0.000215,2]
[346066462,1734687040907,-1208.57090386,0.000215,2]
[346066496,1734687045194,-945.0,0.00020956,2]
[346066497,1734687045208,-2503.398,0.00020956,2]
[346066498,1734687045219,-423.48225542,0.000214,2]
[346066499,1734687045229,-20077.9714438,0.000215,2]
[346066500,1734687045244,-19810.19211382,0.000215,2]
[346066501,1734687045290,-71396.47667394,0.000215,2]
[346066502,1734687045302,-85330.84262378,0.000215,2]
[346066540,1734687047022,-1296.11776042,0.000215,2]
[346066543,1734687687760,10000.0,0.0001725,2]
[346066546,1734687701731,10000.0,0.0001725,2]
[346066547,1734687713219,10000.0,0.0001725,2]
[346066548,1734687721894,10000.0,0.0001725,2]
[346066549,1734687747235,10000.0,0.0001725,2]
[346066551,1734687940606,229.122894,0.00013973,2]
[346066555,1734688026937,5000.0,0.00025,120]
[346066636,1734688236392,-173.62237655,0.00017444,2]
[346066637,1734688236402,-5000.0,0.0001762,2]
[346066639,1734688236411,-1688.95274967,0.00018706,2]
[346066641,1734688236421,-300.0,0.00018903,2]
[346066642,1734688236430,-300.0,0.00018903,2]
[346066643,1734688236440,-1758.37613143,0.00018904,2]
[346066644,1734688236452,-3241.62386857,0.00018904,2]
[346066645,1734688236462,-173.510316,0.00019355,2]
[346066646,1734688236471,-617.810953,0.00019539,2]
[346066647,1734688236481,-588.33,0.00020292,2]
[346066648,1734688236492,-396.968,0.0002042,2]
[346066649,1734688236502,-229.122894,0.00020447,2]
[346066650,1734688236511,-262.636933,0.00020499,2]
[346066651,1734688236521,-420.0,0.00020606,2]
[346066652,1734688236531,-153.0,0.00020712,2]
[346066653,1734688236540,-217.5561215,0.00020712,2]
[346066654,1734688236550,-214.0101375,0.00020712,2]
[346066655,1734688236559,-352.02932,0.00020741,2]
[346066656,1734688236568,-352.02932,0.00020741,2]
[346066657,1734688236578,-112.0655114,0.00020741,2]
[346066658,1734688236702,-239.9638086,0.00020741,2]
[346066659,1734688236711,-323.490006,0.00020741,2]
[346066660,1734688236721,-420.0,0.00020793,2]
[346066661,1734688236730,-214.0101375,0.00020878,2]
[346066662,1734688236741,-214.0101375,0.00020878,2]
[346066664,1734688236751,-600.0,0.00020944,2]
[346066666,1734688236760,-227.0098644,0.00021149,2]
[346066668,1734688236772,-473.75,0.00021149,2]
[346066692,1734688237982,-1036.134,0.00021149,2]
[346066695,1734688238153,-1276.21143,0.00021149,2]
[346066696,1734688238164,-451.138672,0.00021149,2]
[346066697,1734688238176,-3811.57567619,0.00021149,2]
[346066698,1734688238186,-177.250853,0.00021334,2]
[346066699,1734688238195,-228.0,0.0002145,5]
[346066700,1734688238204,-182.182,0.00021499,2]
[346066701,1734688238213,-201.74143233,0.00021499,2]
[346066702,1734688238441,-151.0,0.00021499,2]
[346066703,1734688238451,-4641.34440988,0.000215,2]
[346066704,1734688238463,-37576.50859445,0.000215,2]
[346066705,1734688238473,-550.76,0.000215,2]
[346066706,1734688238482,-151.0,0.000215,2]
[346066707,1734688238492,-152.129896,0.000215,2]
[346066708,1734688238505,-1000.0,0.000215,2]
[346066709,1734688238520,-9028.25049248,0.000215,2]
[346066710,1734688238530,-9008.24950746,0.000216,2]
[346066711,1734688238539,-153.0,0.00021607,2]
[346066712,1734688238549,-153.0,0.00021607,2]
[346066713,1734688238558,-153.0,0.00021607,2]
[346066714,1734688238568,-153.0,0.00021607,2]
[346066715,1734688238577,-1301.31083154,0.0002166,30]
[346066716,1734688238586,-783.91686638,0.0002166,30]
[346066717,1734688238595,-160.0,0.00021663,3]
[346066718,1734688238605,-155.1094375,0.00021671,2]
[346066719,1734688238614,-9028.25049248,0.000217,2]
[346066720,1734688238623,-677.386,0.00021709,2]
[346066721,1734688238634,-1336.937,0.00021709,2]
[346066722,1734688238643,-150.371,0.00021709,2]
[346066723,1734688238653,-14399.70710085,0.00021717,3]
[346066724,1734688238662,-151.0,0.00021717,2]
[346066725,1734688238672,-11095.70493735,0.00021717,2]
[346066726,1734688238681,-205.183566,0.0002174,2]
[346066727,1734688238691,-151.0,0.00021768,5]
[346066728,1734688238700,-1000.0,0.00021778,2]
[346066729,1734688238710,-5000.03,0.000218,2]
[346066730,1734688238719,-2000.0,0.000218,2]
[346066731,1734688238729,-151.0,0.000218,3]
[346066732,1734688238738,-165.26511568,0.00021816,2]
[346066733,1734688238753,-10643.27117383,0.00021817,2]
[346066734,1734688238763,-501.47020436,0.00021817,2]
[346066735,1734688238773,-666.0,0.00021817,2]
[346066736,1734688238782,-137706.47903558,0.00021817,4]
[346066756,1734688240367,-558.96832019,0.00021717,2]
[346066757,1734688240379,-2043.34041282,0.00021717,2]
[346066758,1734688240389,-17027.23212358,0.00021817,4]
[346066759,1734688240401,-376.69208944,0.00021817,4]
[346066761,1734688242558,-151.0,0.00021499,2]
[346066762,1734688242568,-2808.0,0.00021673,15]
[346066764,1734688242579,-500.0,0.00021715,2]
[346066765,1734688242589,-500.0,0.00021715,2]
[346066766,1734688242598,-500.0,0.00021715,2]
[346066767,1734688242608,-500.0,0.00021715,2]
[346066768,1734688242618,-204.35160797,0.00021715,2]
[346066769,1734688242627,-500.0,0.00021715,2]
[346066770,1734688242637,-500.0,0.00021715,2]
[346066771,1734688242646,-500.0,0.00021715,2]
[346066772,1734688242655,-261.83743428,0.00021715,2]
[346066773,1734688242665,-186.39150247,0.00021715,2]
[346066774,1734688242674,-500.0,0.00021715,2]
[346066775,1734688242684,-500.0,0.00021715,2]
[346066777,1734688242694,-427.01213354,0.00021715,2]
[346066779,1734688242703,-500.0,0.00021715,2]
[346066781,1734688242713,-500.0,0.00021715,2]
[346066782,1734688242722,-500.0,0.00021715,2]
[346066783,1734688242732,-500.0,0.00021715,2]
[346066784,1734688242742,-500.0,0.00021715,2]
[346066786,1734688242757,-500.0,0.00021715,2]
[346066790,1734688242766,-500.0,0.00021715,2]
[346066793,1734688242775,-283.78343575,0.00021715,2]
[346066796,1734688242785,-500.0,0.00021715,2]
[346066799,1734688242794,-500.0,0.00021715,2]
[346066802,1734688242803,-500.0,0.00021715,2]
[346066805,1734688242813,-500.0,0.00021715,2]
[346066807,1734688242823,-500.0,0.00021715,2]
[346066809,1734688242832,-364872.62488613,0.00021817,4]
[346066821,1734688243367,-5000.0,0.000215,2]
[346066822,1734688243377,-14599.72480579,0.00021817,4]
[346066823,1734688243406,-38047.84260096,0.00021817,4]
[346066838,1734688246284,-9480.6,0.00021817,4]
[346066839,1734688246297,-13046.1629673,0.00021817,4]
[346066840,1734688246309,-7570.00027,0.00021817,4]
[346066841,1734688246321,-16130.96,0.00021817,4]
[346066842,1734688246333,-950.0,0.00021817,4]
[346066843,1734688378833,1828.0,0.00025,120]
[346066848,1734688782523,-2000.0,0.00022,30]
[346066849,1734688784039,-2000.0,0.00022,30]
[346066850,1734688784722,-2000.0,0.00022,30]